Workbook

Sheet Sheet1
A1: Table S5 All differential proteins identified in this work
A2: Accession # | B2: Unused | C2: Total | D2: % Cov | E2: Name | F2: Gene name | G2: Peptides(95%) | H2: first_114:121 | I2: first_115:121 | J2: first_116:121 | K2: first_117:121 | L2: first_118:121 | M2: first_119:121 | N2: first_Fold change | O2: first_Pvalue | P2: Second_114:121 | Q2: Second_115:121 | R2: Second_116:121 | S2: Second_117:121 | T2: Second_118:121 | U2: Second_119:121 | V2: Fold change | W2: Pvalue | X2: Average Fold change | Y2: Average Pvalue | Z2: threshold
A3: O00115 | B3: 7.34 | C3: 7.53 | D3: 18.3 | E3: Deoxyribonuclease-2-alpha | F3: DNASE2 | G3: 7 | H3: 0.4285 | I3: 0.4018 | J3: 0.3565 | K3: 1.4723 | L3: 1.5996 | M3: 1.4454 | N3: 0.262723308 | O3: 2.84E-05 | P3: 0.5916 | Q3: 0.5808 | R3: 0.5495 | S3: 1.6596 | T3: 1.6444 | U3: 1.4191 | V3: 0.36 | W3: 2.21E-04 | X3: 0.31 | Y3: 1.25E-04 | Z3: down
A4: O00299 | B4: 52.18 | C4: 52.28 | D4: 88.4 | E4: Chloride intracellular channel protein 1 | F4: CLIC1 | G4: 197 | H4: 0.2938 | I4: 0.4571 | J4: 0.5495 | K4: 1.3305 | L4: 0.912 | M4: 0.8318 | N4: 0.422990599 | O4: 0.026218678 | P4: 0.263 | Q4: 0.4246 | R4: 0.5058 | S4: 1.1272 | T4: 1.0093 | U4: 0.8241 | V4: 0.40 | W4: 6.55E-03 | X4: 0.41 | Y4: 1.64E-02 | Z4: down
A5: O43278 | B5: 7.53 | C5: 7.75 | D5: 15.5 | E5: Kunitz-type protease inhibitor 1 | F5: SPINT1 | G5: 6 | H5: 0.7516 | I5: 0.7311 | J5: 0.5248 | K5: 1.8197 | L5: 1.7539 | M5: 1.4588 | N5: 0.398915031 | O5: 0.001601103 | P5: 0.6081 | Q5: 0.673 | R5: 0.5598 | S5: 1.7219 | T5: 1.2942 | U5: 1.1912 | V5: 0.44 | W5: 8.91E-03 | X5: 0.42 | Y5: 5.26E-03 | Z5: down
A6: O60879 | B6: 27.59 | C6: 28.01 | D6: 21.5 | E6: Protein diaphanous homolog 2 | F6: DIAPH2 | G6: 16 | H6: 0.8954 | I6: 1.0093 | J6: 0.7178 | K6: 2.466 | L6: 2.1677 | M6: 2.4434 | N6: 0.370561388 | O6: 0.000315686 | P6: 0.4699 | Q6: 0.597 | R6: 0.52 | S6: 1.5136 | T6: 1.4723 | U6: 1.4859 | V6: 0.35 | W6: 1.59E-05 | X6: 0.36 | Y6: 1.66E-04 | Z6: down
A7: O75116 | B7: 108.18 | C7: 108.32 | D7: 52.5 | E7: Rho-associated protein kinase 2 | F7: ROCK2 | G7: 75 | H7: 0.3597 | I7: 0.5598 | J7: 0.5058 | K7: 1.3804 | L7: 1.2942 | M7: 1.2706 | N7: 0.36127446 | O7: 0.000253329 | P7: 0.4786 | Q7: 0.5598 | R7: 0.6252 | S7: 1.2823 | T7: 1.1588 | U7: 1.2823 | V7: 0.45 | W7: 3.14E-04 | X7: 0.40 | Y7: 2.84E-04 | Z7: down
A8: O75369 | B8: 139.13 | C8: 144.91 | D8: 48.2 | E8: Filamin-B | F8: FLNB | G8: 93 | H8: 0.4246 | I8: 0.4875 | J8: 0.4446 | K8: 1.3932 | L8: 1.1482 | M8: 1.1803 | N8: 0.364537711 | O8: 0.000568969 | P8: 0.5445 | Q8: 0.4786 | R8: 0.5152 | S8: 1.3677 | T8: 1.3428 | U8: 1.1912 | V8: 0.39 | W8: 1.74E-04 | X8: 0.38 | Y8: 3.72E-04 | Z8: down
A9: O95297 | B9: 9.83 | C9: 9.91 | D9: 33.1 | E9: Myelin protein zero-like protein 1 | F9: MPZL1 | G9: 6 | H9: 0.4169 | I9: 0.3664 | J9: 0.673 | K9: 1.0864 | L9: 1.028 | M9: 0.8954 | N9: 0.483852748 | O9: 0.009391137 | P9: 0.4169 | Q9: 0.3873 | R9: 0.4875 | S9: 0.9376 | T9: 0.9376 | U9: 0.9908 | V9: 0.45 | W9: 1.10E-04 | X9: 0.47 | Y9: 4.75E-03 | Z9: down
A10: P01730 | B10: 10.64 | C10: 10.68 | D10: 29.9 | E10: T-cell surface glycoprotein CD4 | F10: CD4 | G10: 6 | H10: 1.3677 | I10: 0.4207 | J10: 0.4207 | K10: 2.355 | L10: 1.888 | M10: 2.1878 | N10: 0.343518691 | O10: 0.014959437 | P10: 0.6918 | Q10: 0.7379 | R10: 0.5248 | S10: 2.5823 | T10: 2.0512 | U10: 2.2284 | V10: 0.28 | W10: 6.38E-04 | X10: 0.31 | Y10: 7.80E-03 | Z10: down
A11: P04156 | B11: 4 | C11: 4 | D11: 12.7 | E11: Major prion protein | F11: PRNP | G11: 4 | H11: 0.4786 | I11: 0.6368 | J11: 0.4325 | K11: 1.4859 | L11: 1.0186 | M11: 1.3183 | N11: 0.404912629 | O11: 0.007209438 | P11: 0.4966 | Q11: 0.3221 | R11: 0.4325 | S11: 1.2942 | T11: 1.2474 | U11: 1.3305 | V11: 0.32 | W11: 1.01E-04 | X11: 0.36 | Y11: 3.66E-03 | Z11: down
A12: P04439 | B12: 55.19 | C12: 55.27 | D12: 70.7 | E12: HLA class I histocompatibility antigen, A-3 alpha chain | F12: HLA-A | G12: 111 | H12: 0.3981 | I12: 0.5105 | J12: 0.5598 | K12: 1.406 | L12: 1.2706 | M12: 1.2823 | N12: 0.370911112 | O12: 0.000210653 | P12: 0.3162 | Q12: 0.3597 | R12: 0.5152 | S12: 1.0765 | T12: 1.028 | U12: 0.9204 | V12: 0.39 | W12: 1.30E-03 | X12: 0.38 | Y12: 7.54E-04 | Z12: down
A13: P04839 | B13: 21.95 | C13: 24.22 | D13: 34.2 | E13: Cytochrome b-245 heavy chain | F13: CYBB | G13: 23 | H13: 0.4246 | I13: 0.5754 | J13: 0.6026 | K13: 2.6303 | L13: 1.9953 | M13: 2.1677 | N13: 0.23590891 | O13: 0.000935805 | P13: 0.4613 | Q13: 0.6026 | R13: 0.8091 | S13: 2.2699 | T13: 1.8535 | U13: 1.803 | V13: 0.32 | W13: 1.65E-03 | X13: 0.28 | Y13: 1.30E-03 | Z13: down
A14: P06280 | B14: 18.74 | C14: 18.78 | D14: 37.5 | E14: Alpha-galactosidase A | F14: GLA | G14: 13 | H14: 0.3597 | I14: 0.8166 | J14: 0.787 | K14: 1.5704 | L14: 1.4588 | M14: 1.2134 | N14: 0.462758686 | O14: 0.013826328 | P14: 0.5649 | Q14: 0.8241 | R14: 0.6026 | S14: 1.5849 | T14: 1.406 | U14: 1.3804 | V14: 0.46 | W14: 1.55E-03 | X14: 0.46 | Y14: 7.69E-03 | Z14: down
A15: P06734 | B15: 10.26 | C15: 10.29 | D15: 38.3 | E15: Low affinity immunoglobulin epsilon Fc receptor | F15: FCER2 | G15: 9 | H15: 0.278 | I15: 0.2089 | J15: 0.1368 | K15: 2.0893 | L15: 1.6293 | M15: 1.8707 | N15: 0.111588213 | O15: 0.000284548 | P15: 0.3342 | Q15: 0.4018 | R15: 0.4875 | S15: 1.7219 | T15: 1.4588 | U15: 1.7061 | V15: 0.25 | W15: 2.20E-04 | X15: 0.18 | Y15: 2.53E-04 | Z15: down
A16: P07339 | B16: 41.46 | C16: 41.57 | D16: 58.7 | E16: Cathepsin D | F16: CTSD | G16: 123 | H16: 0.6194 | I16: 0.929 | J16: 0.7586 | K16: 2.729 | L16: 2.1677 | M16: 2.0893 | N16: 0.330231892 | O16: 0.002105962 | P16: 0.6081 | Q16: 0.787 | R16: 0.6252 | S16: 2.208 | T16: 1.888 | U16: 2.1086 | V16: 0.33 | W16: 2.26E-04 | X16: 0.33 | Y16: 1.17E-03 | Z16: down
A17: P08174 | B17: 19.43 | C17: 19.54 | D17: 49.6 | E17: Complement decay-accelerating factor | F17: CD55 | G17: 18 | H17: 0.52 | I17: 0.5495 | J17: 0.5598 | K17: 1.406 | L17: 1.4322 | M17: 1.3804 | N17: 0.386218177 | O17: 1.44E-06 | P17: 0.5395 | Q17: 0.5546 | R17: 0.6138 | S17: 1.3552 | T17: 1.2474 | U17: 0.9727 | V17: 0.48 | W17: 5.84E-03 | X17: 0.43 | Y17: 2.92E-03 | Z17: down
A18: P08670 | B18: 58.98 | C18: 59.04 | D18: 54.5 | E18: Vimentin | F18: VIM | G18: 51 | H18: 0.5248 | I18: 0.5702 | J18: 0.5297 | K18: 1.6444 | L18: 1.406 | M18: 1.3677 | N18: 0.367737263 | O18: 0.000446413 | P18: 0.4571 | Q18: 0.5702 | R18: 0.5297 | S18: 1.406 | T18: 1.4322 | U18: 1.3804 | V18: 0.37 | W18: 1.66E-05 | X18: 0.37 | Y18: 2.32E-04 | Z18: down
A19: P09769 | B19: 18.17 | C19: 22.77 | D19: 38.6 | E19: Tyrosine-protein kinase Fgr | F19: FGR | G19: 14 | H19: 0.5058 | I19: 0.6252 | J19: 0.4699 | K19: 1.4997 | L19: 1.3804 | M19: 1.3305 | N19: 0.380207096 | O19: 0.000224314 | P19: 0.5012 | Q19: 0.5702 | R19: 0.6607 | S19: 1.3183 | T19: 1.2942 | U19: 1.0666 | V19: 0.47 | W19: 2.18E-03 | X19: 0.43 | Y19: 1.20E-03 | Z19: down
A20: P0DMV9 | B20: 41.02 | C20: 64.55 | D20: 73.5 | E20: Heat shock 70 kDa protein 1B | F20: HSPA1B | G20: 71 | H20: 0.3733 | I20: 0.5297 | J20: 0.4742 | K20: 1.3932 | L20: 1.2474 | M20: 1.1482 | N20: 0.363492399 | O20: 0.000684853 | P20: 0.3767 | Q20: 0.5012 | R20: 0.5346 | S20: 1.1695 | T20: 0.863 | U20: 1.1695 | V20: 0.44 | W20: 6.16E-03 | X20: 0.40 | Y20: 3.42E-03 | Z20: down
A21: P11215 | B21: 42.12 | C21: 43.18 | D21: 31.7 | E21: Integrin alpha-M | F21: ITGAM | G21: 28 | H21: 1.1169 | I21: 1.0666 | J21: 0.8091 | K21: 2.7542 | L21: 2.4434 | M21: 2.704 | N21: 0.378733421 | O21: 0.000269859 | P21: 0.7727 | Q21: 0.5248 | R21: 0.3664 | S21: 1.4454 | T21: 1.2823 | U21: 1.4191 | V21: 0.40 | W21: 3.00E-03 | X21: 0.39 | Y21: 1.63E-03 | Z21: down
A22: P13473 | B22: 10.43 | C22: 10.51 | D22: 22 | E22: Lysosome-associated membrane glycoprotein 2 | F22: LAMP2 | G22: 12 | H22: 2.0893 | I22: 2.1878 | J22: 0.912 | K22: 4.4875 | L22: 2.9923 | M22: 4.2855 | N22: 0.441051227 | O22: 0.024403135 | P22: 1.1272 | Q22: 0.8472 | R22: 0.4966 | S22: 1.977 | T22: 1.6444 | U22: 1.9588 | V22: 0.44 | W22: 8.11E-03 | X22: 0.44 | Y22: 1.63E-02 | Z22: down
A23: P13498 | B23: 8.2 | C23: 8.29 | D23: 38.5 | E23: Cytochrome b-245 light chain | F23: CYBA | G23: 13 | H23: 0.2679 | I23: 0.2911 | J23: 0.2831 | K23: 1.3804 | L23: 0.9638 | M23: 1.0965 | N23: 0.244746709 | O23: 0.002147264 | P23: 0.2938 | Q23: 0.2992 | R23: 0.2377 | S23: 1.3062 | T23: 0.912 | U23: 0.8318 | V23: 0.27 | W23: 7.48E-03 | X23: 0.26 | Y23: 4.82E-03 | Z23: down
A24: P15144 | B24: 89.13 | C24: 89.21 | D24: 55.6 | E24: Aminopeptidase N | F24: ANPEP | G24: 128 | H24: 0.1528 | I24: 0.2032 | J24: 0.2014 | K24: 1.6293 | L24: 1.7061 | M24: 1.7539 | N24: 0.109523903 | O24: 2.90E-06 | P24: 0.1432 | Q24: 0.1585 | R24: 0.1941 | S24: 1.7865 | T24: 1.7061 | U24: 1.7378 | V24: 0.09 | W24: 5.78E-07 | X24: 0.10 | Y24: 1.74E-06 | Z24: down
A25: P16671 | B25: 17.97 | C25: 18.14 | D25: 28.6 | E25: Platelet glycoprotein 4 | F25: CD36 | G25: 21 | H25: 0.8241 | I25: 0.8017 | J25: 0.6026 | K25: 4.3251 | L25: 4.6559 | M25: 4.7424 | N25: 0.162379585 | O25: 1.23E-05 | P25: 0.9817 | Q25: 0.9462 | R25: 0.5105 | S25: 3.6644 | T25: 3.4041 | U25: 3.1046 | V25: 0.24 | W25: 3.12E-04 | X25: 0.20 | Y25: 1.62E-04 | Z25: down
A26: P19440 | B26: 36.84 | C26: 36.89 | D26: 41.3 | E26: Gamma-glutamyltranspeptidase 1 | F26: GGT1 | G26: 41 | H26: 0.9462 | I26: 0.673 | J26: 0.7656 | K26: 1.5276 | L26: 1.7701 | M26: 1.9409 | N26: 0.455236132 | O26: 0.002740125 | P26: 0.7178 | Q26: 0.6081 | R26: 0.6252 | S26: 1.3677 | T26: 1.8197 | U26: 1.6749 | V26: 0.40 | W26: 2.13E-03 | X26: 0.43 | Y26: 2.43E-03 | Z26: down
A27: P20073 | B27: 24.46 | C27: 27.29 | D27: 29.9 | E27: Annexin A7 | F27: ANXA7 | G27: 18 | H27: 0.8551 | I27: 0.8017 | J27: 0.631 | K27: 1.4859 | L27: 1.5417 | M27: 1.6904 | N27: 0.48490886 | O27: 0.000882392 | P27: 1.3062 | Q27: 1.2359 | R27: 0.9638 | S27: 2.8576 | T27: 2.6303 | U27: 2.8054 | V27: 0.42 | W27: 2.17E-04 | X27: 0.45 | Y27: 5.50E-04 | Z27: down
A28: P23229 | B28: 58.91 | C28: 58.94 | D28: 39.3 | E28: Integrin alpha-6 | F28: ITGA6 | G28: 39 | H28: 0.5495 | I28: 0.7943 | J28: 0.6368 | K28: 1.4997 | L28: 1.2823 | M28: 1.4322 | N28: 0.46998244 | O28: 0.001502365 | P28: 0.7379 | Q28: 1.028 | R28: 0.871 | S28: 1.9409 | T28: 1.8365 | U28: 1.7378 | V28: 0.48 | W28: 7.20E-04 | X28: 0.47 | Y28: 1.11E-03 | Z28: down
A29: P24071 | B29: 8.04 | C29: 8.06 | D29: 28.2 | E29: Immunoglobulin alpha Fc receptor | F29: FCAR | G29: 7 | H29: 0.4656 | I29: 0.5058 | J29: 0.5248 | K29: 1.7061 | L29: 1.8707 | M29: 1.7865 | N29: 0.278970037 | O29: 1.41E-05 | P29: 0.5248 | Q29: 0.4325 | R29: 0.413 | S29: 1.7701 | T29: 1.6444 | U29: 1.5136 | V29: 0.28 | W29: 1.31E-04 | X29: 0.28 | Y29: 7.25E-05 | Z29: down
A30: P25789 | B30: 17.4 | C30: 17.63 | D30: 52.5 | E30: Proteasome subunit alpha type-4 | F30: PSMA4 | G30: 28 | H30: 0.4365 | I30: 0.8241 | J30: 0.6138 | K30: 1.7061 | L30: 1.3552 | M30: 1.2246 | N30: 0.437341049 | O30: 0.011596912 | P30: 0.7178 | Q30: 0.6194 | R30: 0.9817 | S30: 2.1878 | T30: 1.4997 | U30: 1.556 | V30: 0.44 | W30: 1.66E-02 | X30: 0.44 | Y30: 1.41E-02 | Z30: down
A31: P30273 | B31: 8 | C31: 8 | D31: 33.7 | E31: High affinity immunoglobulin epsilon receptor subunit gamma | F31: FCER1G | G31: 4 | H31: 0.1871 | I31: 0.3873 | J31: 0.5346 | K31: 1.3804 | L31: 1.0666 | M31: 1.1272 | N31: 0.310279223 | O31: 0.004120704 | P31: 0.2466 | Q31: 0.4742 | R31: 0.5445 | S31: 1.2823 | T31: 0.863 | U31: 0.9638 | V31: 0.41 | W31: 1.66E-02 | X31: 0.36 | Y31: 1.04E-02 | Z31: down
A32: P32119 | B32: 14.66 | C32: 16.94 | D32: 49 | E32: Peroxiredoxin-2 | F32: PRDX2 | G32: 16 | H32: 0.1271 | I32: 0.1117 | J32: 0.0787 | K32: 2.1878 | L32: 1.9588 | M32: 2.1677 | N32: 0.050282692 | O32: 1.15E-05 | P32: 0.1271 | Q32: 0.1306 | R32: 0.1086 | S32: 1.7865 | T32: 1.9055 | U32: 1.5704 | V32: 0.07 | W32: 7.71E-05 | X32: 0.06 | Y32: 4.43E-05 | Z32: down
A33: P32942 | B33: 7.77 | C33: 8.84 | D33: 16.8 | E33: Intercellular adhesion molecule 3 | F33: ICAM3 | G33: 7 | H33: 0.5598 | I33: 0.5445 | J33: 0.4875 | K33: 1.7219 | L33: 1.8197 | M33: 1.7865 | N33: 0.298755654 | O33: 4.25E-06 | P33: 0.9462 | Q33: 0.5861 | R33: 0.4571 | S33: 1.888 | T33: 1.6904 | U33: 2.1677 | V33: 0.35 | W33: 3.41E-03 | X33: 0.32 | Y33: 1.71E-03 | Z33: down
A34: P32970 | B34: 3.89 | C34: 4.01 | D34: 16.1 | E34: CD70 antigen | F34: CD70 | G34: 2 | H34: 2.466 | I34: 1.1272 | J34: 0.955 | K34: 6.1376 | L34: 6.4863 | M34: 6.6681 | N34: 0.235755754 | O34: 0.000611432 | P34: 1.2474 | Q34: 0.6792 | R34: 0.8954 | S34: 1.8707 | T34: 2.6303 | U34: 2.6303 | V34: 0.40 | W34: 8.98E-03 | X34: 0.32 | Y34: 4.80E-03 | Z34: down
A35: P33241 | B35: 12.35 | C35: 12.42 | D35: 47.8 | E35: Lymphocyte-specific protein 1 | F35: LSP1 | G35: 16 | H35: 0.1644 | I35: 0.2992 | J35: 0.3733 | K35: 1.1695 | L35: 1.1272 | M35: 0.871 | N35: 0.264197999 | O35: 0.002231014 | P35: 0.2355 | Q35: 0.3048 | R35: 0.4446 | S35: 1.3677 | T35: 1.1912 | U35: 0.8872 | V35: 0.29 | W35: 5.87E-03 | X35: 0.27 | Y35: 4.05E-03 | Z35: down
A36: P36269 | B36: 5.82 | C36: 5.89 | D36: 8.4 | E36: Gamma-glutamyltransferase 5 | F36: GGT5 | G36: 3 | H36: 0.7798 | I36: 0.5598 | J36: 0.871 | K36: 1.888 | L36: 2.0701 | M36: 1.3183 | N36: 0.418959897 | O36: 0.013931436 | P36: 0.6546 | Q36: 1.1272 | R36: 0.5546 | S36: 2.704 | T36: 2.2699 | U36: 3.8726 | V36: 0.26 | W36: 1.31E-02 | X36: 0.34 | Y36: 1.35E-02 | Z36: down
A37: P40121 | B37: 27.01 | C37: 27.08 | D37: 66.7 | E37: Macrophage-capping protein | F37: CAPG | G37: 35 | H37: 0.3664 | I37: 0.4831 | J37: 0.5754 | K37: 1.3183 | L37: 1.0375 | M37: 0.9036 | N37: 0.43716635 | O37: 0.010945588 | P37: 0.4831 | Q37: 0.5916 | R37: 0.7112 | S37: 1.5704 | T37: 1.406 | U37: 1.028 | V37: 0.45 | W37: 1.30E-02 | X37: 0.44 | Y37: 1.20E-02 | Z37: down
A38: P46940 | B38: 178.77 | C38: 178.7 | D38: 61 | E38: Ras GTPase-activating-like protein IQGAP1 | F38: IQGAP1 | G38: 242 | H38: 0.4207 | I38: 0.7447 | J38: 0.8318 | K38: 1.9409 | L38: 1.5136 | M38: 1.4454 | N38: 0.407600155 | O38: 0.008297147 | P38: 0.3873 | Q38: 0.6918 | R38: 0.631 | S38: 1.6904 | T38: 1.3932 | U38: 1.2359 | V38: 0.40 | W38: 5.88E-03 | X38: 0.40 | Y38: 7.09E-03 | Z38: down
A39: P55060 | B39: 8.5 | C39: 10.98 | D39: 14.1 | E39: Exportin-2 | F39: CSE1L | G39: 7 | H39: 0.6427 | I39: 0.2992 | J39: 0.3802 | K39: 1.406 | L39: 0.863 | M39: 1.3428 | N39: 0.366050169 | O39: 0.018947786 | P39: 0.4285 | Q39: 0.4699 | R39: 0.5105 | S39: 0.8872 | T39: 1.1695 | U39: 1.3804 | V39: 0.41 | W39: 9.53E-03 | X39: 0.39 | Y39: 1.42E-02 | Z39: down
A40: P63104 | B40: 33.06 | C40: 38.05 | D40: 83.3 | E40: 14-3-3 protein zeta/delta | F40: YWHAZ | G40: 87 | H40: 0.2032 | I40: 0.5248 | J40: 0.673 | K40: 1.0186 | L40: 0.9204 | M40: 0.879 | N40: 0.497161107 | O40: 0.030964987 | P40: 0.2512 | Q40: 0.6252 | R40: 0.673 | S40: 1.3804 | T40: 1.1169 | U40: 0.929 | V40: 0.45 | W40: 2.86E-02 | X40: 0.47 | Y40: 2.98E-02 | Z40: down
A41: Q00013 | B41: 16.34 | C41: 16.43 | D41: 31.8 | E41: 55 kDa erythrocyte membrane protein | F41: MPP1 | G41: 14 | H41: 0.5346 | I41: 0.5105 | J41: 0.6607 | K41: 1.3305 | L41: 1.3062 | M41: 1.1272 | N41: 0.453200138 | O41: 0.000978925 | P41: 0.4699 | Q41: 0.6607 | R41: 0.7311 | S41: 1.5849 | T41: 1.1695 | U41: 1.4588 | V41: 0.44 | W41: 5.76E-03 | X41: 0.45 | Y41: 3.37E-03 | Z41: down
A42: Q03405 | B42: 22.32 | C42: 22.32 | D42: 45.7 | E42: Urokinase plasminogen activator surface receptor | F42: PLAUR | G42: 32 | H42: 0.4742 | I42: 0.4406 | J42: 0.3908 | K42: 1.2942 | L42: 1.0666 | M42: 1.1066 | N42: 0.376535733 | O42: 0.000630078 | P42: 0.3436 | Q42: 0.6138 | R42: 0.4966 | S42: 1.2942 | T42: 1.2359 | U42: 1.1066 | V42: 0.40 | W42: 1.62E-03 | X42: 0.39 | Y42: 1.12E-03 | Z42: down
A43: Q04760 | B43: 24.17 | C43: 24.29 | D43: 76.1 | E43: Lactoylglutathione lyase | F43: GLO1 | G43: 31 | H43: 0.7656 | I43: 0.6855 | J43: 0.7112 | K43: 1.9231 | L43: 1.8365 | M43: 1.6444 | N43: 0.400129534 | O43: 0.000227456 | P43: 0.4786 | Q43: 0.7798 | R43: 0.4446 | S43: 1.888 | T43: 1.6749 | U43: 1.7219 | V43: 0.32 | W43: 6.63E-04 | X43: 0.36 | Y43: 4.45E-04 | Z43: down
A44: Q06830 | B44: 30.89 | C44: 30.93 | D44: 74.4 | E44: Peroxiredoxin-1 | F44: PRDX1 | G44: 32 | H44: 0.5058 | I44: 0.6368 | J44: 0.6668 | K44: 1.4454 | L44: 1.2942 | M44: 1.0186 | N44: 0.481453887 | O44: 0.008432466 | P44: 0.3908 | Q44: 0.631 | R44: 0.5649 | S44: 1.6144 | T44: 1.1588 | U44: 1.1376 | V44: 0.41 | W44: 1.06E-02 | X44: 0.44 | Y44: 9.53E-03 | Z44: down
A45: Q08722 | B45: 11.27 | C45: 11.35 | D45: 17 | E45: Leukocyte surface antigen CD47 | F45: CD47 | G45: 13 | H45: 0.1528 | I45: 0.3436 | J45: 0.5916 | K45: 0.8954 | L45: 0.9376 | M45: 0.8395 | N45: 0.407109448 | O45: 0.015379084 | P45: 0.3221 | Q45: 0.4487 | R45: 0.5058 | S45: 0.9908 | T45: 0.955 | U45: 0.8954 | V45: 0.45 | W45: 1.03E-03 | X45: 0.43 | Y45: 8.20E-03 | Z45: down
A46: Q12884 | B46: 21.22 | C46: 21.35 | D46: 25.1 | E46: Prolyl endopeptidase FAP | F46: FAP | G46: 13 | H46: 0.7656 | I46: 0.413 | J46: 0.4246 | K46: 1.5996 | L46: 1.8707 | M46: 1.6904 | N46: 0.310655531 | O46: 0.001077436 | P46: 0.413 | Q46: 0.492 | R46: 0.6668 | S46: 1.5849 | T46: 1.4723 | U46: 1.6749 | V46: 0.33 | W46: 3.79E-04 | X46: 0.32 | Y46: 7.28E-04 | Z46: down
A47: Q13464 | B47: 62.2 | C47: 81.01 | D47: 40.3 | E47: Rho-associated protein kinase 1 | F47: ROCK1 | G47: 54 | H47: 0.4406 | I47: 0.5012 | J47: 0.6194 | K47: 1.5849 | L47: 1.5704 | M47: 1.4588 | N47: 0.338354175 | O47: 0.000102654 | P47: 0.3908 | Q47: 0.3076 | R47: 0.4613 | S47: 1.3932 | T47: 1.0666 | U47: 1.1588 | V47: 0.32 | W47: 1.55E-03 | X47: 0.33 | Y47: 8.29E-04 | Z47: down
A48: Q13492 | B48: 5.79 | C48: 6.22 | D48: 11.8 | E48: Phosphatidylinositol-binding clathrin assembly protein | F48: PICALM | G48: 3 | H48: 0.7311 | I48: 0.6607 | J48: 0.871 | K48: 2.3335 | L48: 1.2706 | M48: 2.355 | N48: 0.37972177 | O48: 0.027478444 | P48: 1.1272 | Q48: 0.7447 | R48: 0.9036 | S48: 2.5351 | T48: 3.1623 | U48: 2.8054 | V48: 0.33 | W48: 8.55E-04 | X48: 0.35 | Y48: 1.42E-02 | Z48: down
A49: Q15149 | B49: 343.62 | C49: 343.56 | D49: 50.2 | E49: Plectin | F49: PLEC | G49: 227 | H49: 0.4365 | I49: 0.4207 | J49: 0.4446 | K49: 1.2823 | L49: 1.2706 | M49: 1.3804 | N49: 0.330968907 | O49: 1.59E-05 | P49: 0.4093 | Q49: 0.3597 | R49: 0.4325 | S49: 1.2942 | T49: 1.3062 | U49: 1.3932 | V49: 0.30 | W49: 1.63E-05 | X49: 0.32 | Y49: 1.61E-05 | Z49: down
A50: Q15833 | B50: 6.19 | C50: 6.35 | D50: 15.2 | E50: Syntaxin-binding protein 2 | F50: STXBP2 | G50: 6 | H50: 0.3873 | I50: 0.3802 | J50: 0.4325 | K50: 2.355 | L50: 2.4434 | M50: 2.0512 | N50: 0.175192712 | O50: 9.60E-05 | P50: 0.3664 | Q50: 0.4169 | R50: 0.4831 | S50: 1.6904 | T50: 1.1066 | U50: 1.6904 | V50: 0.28 | W50: 5.56E-03 | X50: 0.23 | Y50: 2.83E-03 | Z50: down
A51: Q6GTX8 | B51: 15.93 | C51: 15.98 | D51: 39 | E51: Leukocyte-associated immunoglobulin-like receptor 1 | F51: LAIR1 | G51: 13 | H51: 0.1419 | I51: 0.3076 | J51: 0.2051 | K51: 1.2474 | L51: 1.028 | M51: 0.7656 | N51: 0.215258139 | O51: 0.005704822 | P51: 0.1259 | Q51: 0.1905 | R51: 0.1629 | S51: 0.8872 | T51: 1.0666 | U51: 1.0568 | V51: 0.16 | W51: 1.60E-04 | X51: 0.19 | Y51: 2.93E-03 | Z51: down
A52: Q6UVW9 | B52: 8.95 | C52: 9.19 | D52: 37.9 | E52: C-type lectin domain family 2 member A | F52: CLEC2A | G52: 11 | H52: 0.4169 | I52: 0.6026 | J52: 0.5105 | K52: 1.7378 | L52: 1.5136 | M52: 1.3305 | N52: 0.333922609 | O52: 0.001414749 | P52: 0.3981 | Q52: 0.6368 | R52: 0.6486 | S52: 1.4191 | T52: 1.4859 | U52: 1.2023 | V52: 0.41 | W52: 2.40E-03 | X52: 0.37 | Y52: 1.91E-03 | Z52: down
A53: Q6XQN6 | B53: 19.91 | C53: 19.97 | D53: 39 | E53: Nicotinate phosphoribosyltransferase | F53: NAPRT | G53: 13 | H53: 0.6368 | I53: 0.3597 | J53: 0.597 | K53: 1.2359 | L53: 1.5136 | M53: 1.4191 | N53: 0.38226263 | O53: 0.001949849 | P53: 0.8017 | Q53: 0.4875 | R53: 0.631 | S53: 1.4859 | T53: 1.3932 | U53: 1.8197 | V53: 0.41 | W53: 4.24E-03 | X53: 0.40 | Y53: 3.10E-03 | Z53: down
A54: Q7Z5N4 | B54: 38.19 | C54: 38.35 | D54: 19.2 | E54: Protein sidekick-1 | F54: SDK1 | G54: 28 | H54: 0.6026 | I54: 0.4875 | J54: 0.5058 | K54: 1.4723 | L54: 1.3428 | M54: 1.3932 | N54: 0.379226766 | O54: 7.41E-05 | P54: 0.9462 | Q54: 0.3532 | R54: 0.4365 | S54: 1.9231 | T54: 1.4322 | U54: 1.556 | V54: 0.35 | W54: 1.11E-02 | X54: 0.37 | Y54: 5.58E-03 | Z54: down
A55: Q8WUW1 | B55: 6.94 | C55: 7 | D55: 57.3 | E55: Protein BRICK1 | F55: BRK1 | G55: 5 | H55: 1 | I55: 1.2823 | J55: 1.1912 | K55: 3.2509 | L55: 2.6303 | M55: 1.977 | N55: 0.442022346 | O55: 0.017900736 | P55: 0.3733 | Q55: 0.9036 | R55: 0.9462 | S55: 2.1478 | T55: 1.7701 | U55: 1.3552 | V55: 0.42 | W55: 2.58E-02 | X55: 0.43 | Y55: 2.19E-02 | Z55: down
A56: Q92478 | B56: 13 | C56: 13.09 | D56: 61.7 | E56: C-type lectin domain family 2 member B | F56: CLEC2B | G56: 29 | H56: 0.3133 | I56: 0.4093 | J56: 0.6427 | K56: 1.4191 | L56: 1.4723 | M56: 1.0765 | N56: 0.344086292 | O56: 0.005354388 | P56: 0.3281 | Q56: 0.597 | R56: 0.6668 | S56: 1.3552 | T56: 1.2246 | U56: 1.2134 | V56: 0.42 | W56: 2.89E-03 | X56: 0.38 | Y56: 4.12E-03 | Z56: down
A57: Q99497 | B57: 21.26 | C57: 21.35 | D57: 83.1 | E57: Protein deglycase DJ-1 | F57: PARK7 | G57: 25 | H57: 0.2884 | I57: 0.4699 | J57: 0.4966 | K57: 1.1376 | L57: 1.0471 | M57: 0.929 | N57: 0.40302534 | O57: 0.002239775 | P57: 0.3733 | Q57: 0.5754 | R57: 0.52 | S57: 1.2589 | T57: 1.0568 | U57: 1.1066 | V57: 0.43 | W57: 1.60E-03 | X57: 0.42 | Y57: 1.92E-03 | Z57: down
A58: Q9H3Z4 | B58: 5.76 | C58: 5.94 | D58: 48 | E58: DnaJ homolog subfamily C member 5 | F58: DNAJC5 | G58: 7 | H58: 0.4246 | I58: 0.3908 | J58: 0.7311 | K58: 1.028 | L58: 1.2706 | M58: 0.8472 | N58: 0.491607858 | O58: 0.031116248 | P58: 0.2679 | Q58: 0.5702 | R58: 0.5598 | S58: 0.871 | T58: 0.9462 | U58: 0.9908 | V58: 0.50 | W58: 1.10E-02 | X58: 0.49 | Y58: 2.11E-02 | Z58: down
A59: A0FGR8 | B59: 47.34 | C59: 49.47 | D59: 41.9 | E59: Extended synaptotagmin-2 | F59: ESYT2 | G59: 52 | H59: 1.2589 | I59: 1.2246 | J59: 1.2023 | K59: 0.3532 | L59: 0.3981 | M59: 0.4246 | N59: 3.134450208 | O59: 6.05E-06 | P59: 1.3428 | Q59: 1.4588 | R59: 1.2589 | S59: 0.4018 | T59: 0.4285 | U59: 0.413 | V59: 3.27 | W59: 8.79E-05 | X59: =AVERAGE(N59,V59) -> 3.20 | Y59: =AVERAGE(O59,W59) -> 4.70E-05 | Z59: up
A60: B0I1T2 | B60: 81.94 | C60: 82.5 | D60: 58.9 | E60: Unconventional myosin-Ig | F60: MYO1G | G60: 135 | H60: 1.9055 | I60: 1.5849 | J60: 1.7539 | K60: 0.7943 | L60: 0.8954 | M60: 0.8472 | N60: 2.06720801 | O60: 0.00074526 | P60: 1.977 | Q60: 1.5849 | R60: 1.9055 | S60: 0.8318 | T60: 0.871 | U60: 0.8472 | V60: 2.14 | W60: 1.31E-03 | X60: =AVERAGE(N60,V60) -> 2.11 | Y60: =AVERAGE(O60,W60) -> 1.03E-03 | Z60: up
A61: O00186 | B61: 37.82 | C61: 37.88 | D61: 55.2 | E61: Syntaxin-binding protein 3 | F61: STXBP3 | G61: 26 | H61: 1.1482 | I61: 1.4322 | J61: 1.4191 | K61: 0.5395 | L61: 0.4169 | M61: 0.278 | N61: 3.240035645 | O61: 0.001519503 | P61: 0.8954 | Q61: 1.2589 | R61: 1.2134 | S61: 0.3698 | T61: 0.2655 | U61: 0.2606 | V61: 3.76 | W61: 2.34E-03 | X61: =AVERAGE(N61,V61) -> 3.50 | Y61: =AVERAGE(O61,W61) -> 1.93E-03 | Z61: up
A62: O15400 | B62: 20.08 | C62: 20.15 | D62: 54.4 | E62: Syntaxin-7 | F62: STX7 | G62: 24 | H62: 1.803 | I62: 1.406 | J62: 2.1281 | K62: 0.2965 | L62: 0.4285 | M62: 0.5649 | N62: 4.137607566 | O62: 0.003749043 | P62: 1.4723 | Q62: 1.6904 | R62: 1.977 | S62: 0.2965 | T62: 0.4529 | U62: 0.302 | V62: 4.89 | W62: 9.20E-04 | X62: =AVERAGE(N62,V62) -> 4.51 | Y62: =AVERAGE(O62,W62) -> 2.33E-03 | Z62: up
A63: O94919 | B63: 10.58 | C63: 10.61 | D63: 25.4 | E63: Endonuclease domain-containing 1 protein | F63: ENDOD1 | G63: 8 | H63: 0.8551 | I63: 0.9908 | J63: 1.3428 | K63: 0.4055 | L63: 0.3467 | M63: 0.4699 | N63: 2.609197283 | O63: 0.011862773 | P63: 1.1272 | Q63: 1.5276 | R63: 1.1588 | S63: 0.3532 | T63: 0.2655 | U63: 0.7311 | V63: 2.83 | W63: 1.29E-02 | X63: =AVERAGE(N63,V63) -> 2.72 | Y63: =AVERAGE(O63,W63) -> 1.24E-02 | Z63: up
A64: O95782 | B64: 101.77 | C64: 101.77 | D64: 67.9 | E64: AP-2 complex subunit alpha-1 | F64: AP2A1 | G64: 95 | H64: 1.1912 | I64: 1.3932 | J64: 1.5849 | K64: 0.6138 | L64: 0.5808 | M64: 0.492 | N64: 2.472014704 | O64: 0.00227075 | P64: 1.3305 | Q64: 1.5704 | R64: 1.7701 | S64: 0.7047 | T64: 0.5248 | U64: 0.6546 | V64: 2.48 | W64: 2.53E-03 | X64: =AVERAGE(N64,V64) -> 2.48 | Y64: =AVERAGE(O64,W64) -> 2.40E-03 | Z64: up
A65: P00338 | B65: 24.63 | C65: 29.83 | D65: 66.3 | E65: L-lactate dehydrogenase A chain | F65: LDHA | G65: 43 | H65: 0.9908 | I65: 1.3062 | J65: 1.3677 | K65: 0.5808 | L65: 0.4699 | M65: 0.2884 | N65: 2.736688821 | O65: 0.0058337 | P65: 0.8241 | Q65: 1.0186 | R65: 1.1588 | S65: 0.6252 | T65: 0.2754 | U65: 0.3802 | V65: 2.34 | W65: 1.56E-02 | X65: =AVERAGE(N65,V65) -> 2.54 | Y65: =AVERAGE(O65,W65) -> 1.07E-02 | Z65: up
A66: P00966 | B66: 7.68 | C66: 7.82 | D66: 24.8 | E66: Argininosuccinate synthase | F66: ASS1 | G66: 5 | H66: 0.955 | I66: 0.9908 | J66: 1.2359 | K66: 0.3565 | L66: 0.5012 | M66: 0.4325 | N66: 2.466051775 | O66: 0.002964241 | P66: 0.929 | Q66: 1.2474 | R66: 1.1695 | S66: 0.2377 | T66: 0.2911 | U66: 0.2704 | V66: 4.19 | W66: 9.42E-04 | X66: =AVERAGE(N66,V66) -> 3.33 | Y66: =AVERAGE(O66,W66) -> 1.95E-03 | Z66: up
A67: P02786 | B67: 75.62 | C67: 75.63 | D67: 64 | E67: Transferrin receptor protein 1 | F67: TFRC | G67: 117 | H67: 1.1376 | I67: 1.3183 | J67: 1.3305 | K67: 0.4207 | L67: 0.3837 | M67: 0.4055 | N67: 3.129514836 | O67: 0.000170658 | P67: 1.2023 | Q67: 1.2359 | R67: 1.406 | S67: 0.3802 | T67: 0.3436 | U67: 0.3565 | V67: 3.56 | W67: 1.35E-04 | X67: =AVERAGE(N67,V67) -> 3.34 | Y67: =AVERAGE(O67,W67) -> 1.53E-04 | Z67: up
A68: P04406 | B68: 55.55 | C68: 55.59 | D68: 76.7 | E68: Glyceraldehyde-3-phosphate dehydrogenase | F68: GAPDH | G68: 96 | H68: 1.2474 | I68: 1.7061 | J68: 1.3428 | K68: 0.5495 | L68: 0.3981 | M68: 0.3436 | N68: 3.327369888 | O68: 0.002794056 | P68: 1.3062 | Q68: 1.4588 | R68: 1.2823 | S68: 0.5754 | T68: 0.3467 | U68: 0.3311 | V68: 3.23 | W68: 6.42E-04 | X68: =AVERAGE(N68,V68) -> 3.28 | Y68: =AVERAGE(O68,W68) -> 1.72E-03 | Z68: up
A69: P04843 | B69: 57.79 | C69: 57.91 | D69: 56.7 | E69: Dolichyl-diphosphooligosaccharide--protein glycosyltransferase subunit 1 | F69: RPN1 | G69: 49 | H69: 1.3183 | I69: 1.5704 | J69: 1.888 | K69: 0.6918 | L69: 0.5861 | M69: 0.6792 | N69: 2.440703081 | O69: 0.005027071 | P69: 1.5704 | Q69: 1.5996 | R69: 2.0893 | S69: 0.6427 | T69: 0.6026 | U69: 0.597 | V69: 2.85 | W69: 2.52E-03 | X69: =AVERAGE(N69,V69) -> 2.65 | Y69: =AVERAGE(O69,W69) -> 3.77E-03 | Z69: up
A70: P04844 | B70: 24.8 | C70: 24.86 | D70: 52.1 | E70: Dolichyl-diphosphooligosaccharide--protein glycosyltransferase subunit 2 | F70: RPN2 | G70: 24 | H70: 1.2474 | I70: 1.2359 | J70: 1.2589 | K70: 0.4742 | L70: 0.5808 | M70: 0.7047 | N70: 2.126612491 | O70: 0.00059046 | P70: 0.8551 | Q70: 1.2706 | R70: 1.5704 | S70: 0.4742 | T70: 0.6138 | U70: 0.6668 | V70: 2.11 | W70: 3.97E-02 | X70: =AVERAGE(N70,V70) -> 2.12 | Y70: =AVERAGE(O70,W70) -> 2.01E-02 | Z70: up
A71: P07858 | B71: 17.52 | C71: 17.55 | D71: 37.8 | E71: Cathepsin B | F71: CTSB | G71: 15 | H71: 0.871 | I71: 0.929 | J71: 1.2359 | K71: 0.1754 | L71: 0.492 | M71: 0.4613 | N71: 2.68973155 | O71: 0.013764054 | P71: 0.7447 | Q71: 1.0864 | R71: 0.863 | S71: 0.302 | T71: 0.3342 | U71: 0.3311 | V71: 2.79 | W71: 4.64E-03 | X71: =AVERAGE(N71,V71) -> 2.74 | Y71: =AVERAGE(O71,W71) -> 9.20E-03 | Z71: up
A72: P10644 | B72: 18.63 | C72: 18.77 | D72: 48.3 | E72: cAMP-dependent protein kinase type I-alpha regulatory subunit | F72: PRKAR1A | G72: 18 | H72: 1.0568 | I72: 1.5704 | J72: 1.5136 | K72: 0.955 | L72: 0.3499 | M72: 0.5754 | N72: 2.202201776 | O72: 0.034860192 | P72: 1.0471 | Q72: 1.4322 | R72: 1.4997 | S72: 0.5861 | T72: 0.8091 | U72: 0.4325 | V72: 2.18 | W72: 1.59E-02 | X72: =AVERAGE(N72,V72) -> 2.19 | Y72: =AVERAGE(O72,W72) -> 2.54E-02 | Z72: up
A73: P10809 | B73: 38.97 | C73: 39.08 | D73: 45.2 | E73: 60 kDa heat shock protein, mitochondrial | F73: HSPD1 | G73: 24 | H73: 0.871 | I73: 1.1376 | J73: 0.7178 | K73: 0.4246 | L73: 0.3192 | M73: 0.4571 | N73: 2.270297277 | O73: 0.017160385 | P73: 0.8091 | Q73: 1.2359 | R73: 0.9727 | S73: 0.3597 | T73: 0.3597 | U73: 0.5495 | V73: 2.38 | W73: 1.39E-02 | X73: =AVERAGE(N73,V73) -> 2.32 | Y73: =AVERAGE(O73,W73) -> 1.55E-02 | Z73: up
A74: P11021 | B74: 90.41 | C74: 99.63 | D74: 79.8 | E74: 78 kDa glucose-regulated protein | F74: HSPA5 | G74: 129 | H74: 1.1066 | I74: 1.3804 | J74: 1.5849 | K74: 0.597 | L74: 0.4966 | M74: 0.4018 | N74: 2.722950381 | O74: 0.004559359 | P74: 1 | Q74: 1.4723 | R74: 1.3552 | S74: 0.6138 | T74: 0.5445 | U74: 0.5152 | V74: 2.29 | W74: 7.75E-03 | X74: =AVERAGE(N74,V74) -> 2.51 | Y74: =AVERAGE(O74,W74) -> 6.15E-03 | Z74: up
A75: P11717 | B75: 105.82 | C75: 107.93 | D75: 34.7 | E75: Cation-independent mannose-6-phosphate receptor | F75: IGF2R | G75: 68 | H75: 0.8872 | I75: 0.9908 | J75: 0.8472 | K75: 0.4207 | L75: 0.3981 | M75: 0.4246 | N75: 2.191732347 | O75: 0.000345402 | P75: 0.912 | Q75: 1.0093 | R75: 0.9638 | S75: 0.5152 | T75: 0.4487 | U75: 0.4207 | V75: 2.08 | W75: 2.28E-04 | X75: =AVERAGE(N75,V75) -> 2.14 | Y75: =AVERAGE(O75,W75) -> 2.87E-04 | Z75: up
A76: P13591 | B76: 24.35 | C76: 24.5 | D76: 26.9 | E76: Neural cell adhesion molecule 1 | F76: NCAM1 | G76: 16 | H76: 0.9204 | I76: 1.1482 | J76: 1.0186 | K76: 0.3221 | L76: 0.5546 | M76: 0.5861 | N76: 2.110473065 | O76: 0.006993596 | P76: 0.8241 | Q76: 1.1588 | R76: 1.1588 | S76: 0.3733 | T76: 0.4207 | U76: 0.4613 | V76: 2.50 | W76: 5.35E-03 | X76: =AVERAGE(N76,V76) -> 2.31 | Y76: =AVERAGE(O76,W76) -> 6.17E-03 | Z76: up
A77: P14174 | B77: 5.08 | C77: 5.15 | D77: 35.7 | E77: Macrophage migration inhibitory factor | F77: MIF | G77: 10 | H77: 2.5119 | I77: 2.0893 | J77: 2.1086 | K77: 0.4055 | L77: 0.5861 | M77: 0.5916 | N77: 4.238125316 | O77: 0.000344986 | P77: 2.5119 | Q77: 2.0701 | R77: 1.8707 | S77: 0.5395 | T77: 0.5058 | U77: 0.8472 | V77: 3.41 | W77: 2.24E-03 | X77: =AVERAGE(N77,V77) -> 3.82 | Y77: =AVERAGE(O77,W77) -> 1.29E-03 | Z77: up
A78: P14314 | B78: 29.49 | C78: 30.41 | D78: 44.1 | E78: Glucosidase 2 subunit beta | F78: PRKCSH | G78: 23 | H78: 1.2246 | I78: 1.4454 | J78: 1.3062 | K78: 0.5012 | L78: 0.4699 | M78: 0.4786 | N78: 2.742774367 | O78: 0.000206327 | P78: 1.1482 | Q78: 1.0765 | R78: 1.2246 | S78: 0.3908 | T78: 0.5058 | U78: 0.3873 | V78: 2.69 | W78: 2.37E-04 | X78: =AVERAGE(N78,V78) -> 2.71 | Y78: =AVERAGE(O78,W78) -> 2.22E-04 | Z78: up
A79: P14625 | B79: 69.18 | C79: 75.66 | D79: 55.3 | E79: Endoplasmin | F79: HSP90B1 | G79: 76 | H79: 1.2474 | I79: 1.4191 | J79: 1.5417 | K79: 0.6668 | L79: 0.5649 | M79: 0.4742 | N79: 2.466850343 | O79: 0.001212319 | P79: 1.1169 | Q79: 1.3932 | R79: 1.4454 | S79: 0.3802 | T79: 0.4786 | U79: 0.4055 | V79: 3.13 | W79: 1.07E-03 | X79: =AVERAGE(N79,V79) -> 2.80 | Y79: =AVERAGE(O79,W79) -> 1.14E-03 | Z79: up
A80: P20701 | B80: 86.67 | C80: 87.23 | D80: 50.2 | E80: Integrin alpha-L | F80: ITGAL | G80: 125 | H80: 1.3305 | I80: 1.6144 | J80: 1.9055 | K80: 0.8241 | L80: 0.5916 | M80: 0.4169 | N80: 2.64673142 | O80: 0.007816352 | P80: 1.1066 | Q80: 1.4859 | R80: 1.5136 | S80: 0.6368 | T80: 0.5105 | U80: 0.4571 | V80: 2.56 | W80: 4.17E-03 | X80: =AVERAGE(N80,V80) -> 2.60 | Y80: =AVERAGE(O80,W80) -> 5.99E-03 | Z80: up
A81: P23284 | B81: 27.21 | C81: 27.28 | D81: 59.7 | E81: Peptidyl-prolyl cis-trans isomerase B | F81: PPIB | G81: 26 | H81: 0.8166 | I81: 1.5276 | J81: 1.2942 | K81: 0.6982 | L81: 0.3311 | M81: 0.3048 | N81: 2.727231842 | O81: 0.034908117 | P81: 0.9727 | Q81: 1.7865 | R81: 1.2823 | S81: 0.863 | T81: 0.3945 | U81: 0.413 | V81: 2.42 | W81: 4.88E-02 | X81: =AVERAGE(N81,V81) -> 2.57 | Y81: =AVERAGE(O81,W81) -> 4.19E-02 | Z81: up
A82: P23396 | B82: 19.88 | C82: 20.04 | D82: 58.4 | E82: 40S ribosomal protein S3 | F82: RPS3 | G82: 11 | H82: 0.863 | I82: 1.0568 | J82: 1.1066 | K82: 0.4446 | L82: 0.4207 | M82: 0.4446 | N82: 2.310405374 | O82: 0.001563845 | P82: 1.0666 | Q82: 1.2023 | R82: 1.2706 | S82: 0.5297 | T82: 0.492 | U82: 0.5058 | V82: 2.32 | W82: 3.88E-04 | X82: =AVERAGE(N82,V82) -> 2.31 | Y82: =AVERAGE(O82,W82) -> 9.76E-04 | Z82: up
A83: P24158 | B83: 7.83 | C83: 7.91 | D83: 24.2 | E83: Myeloblastin | F83: PRTN3 | G83: 7 | H83: 2.4889 | I83: 2.5351 | J83: 2.208 | K83: 1.2942 | L83: 1.1588 | M83: 0.912 | N83: 2.149182764 | O83: 0.001047721 | P83: 3.1623 | Q83: 3.2509 | R83: 2.2699 | S83: 1.8365 | T83: 1.0471 | U83: 1.0186 | V83: 2.23 | W83: 1.81E-02 | X83: =AVERAGE(N83,V83) -> 2.19 | Y83: =AVERAGE(O83,W83) -> 9.56E-03 | Z83: up
A84: P24534 | B84: 14.24 | C84: 14.34 | D84: 70.2 | E84: Elongation factor 1-beta | F84: EEF1B2 | G84: 15 | H84: 0.863 | I84: 1.4588 | J84: 1.3062 | K84: 0.6792 | L84: 0.5916 | M84: 0.4055 | N84: 2.164290401 | O84: 0.029427778 | P84: 0.6194 | Q84: 0.9817 | R84: 1.0568 | S84: 0.4446 | T84: 0.4875 | U84: 0.3664 | V84: 2.05 | W84: 3.15E-02 | X84: =AVERAGE(N84,V84) -> 2.11 | Y84: =AVERAGE(O84,W84) -> 3.05E-02 | Z84: up
A85: P30101 | B85: 73.12 | C85: 73.39 | D85: 74.1 | E85: Protein disulfide-isomerase A3 | F85: PDIA3 | G85: 77 | H85: 0.9908 | I85: 1.5136 | J85: 1.3062 | K85: 0.5598 | L85: 0.6138 | M85: 0.3802 | N85: 2.452439181 | O85: 0.010916331 | P85: 1 | Q85: 1.2134 | R85: 1.0965 | S85: 0.6081 | T85: 0.5012 | U85: 0.4529 | V85: 2.12 | W85: 1.63E-03 | X85: =AVERAGE(N85,V85) -> 2.29 | Y85: =AVERAGE(O85,W85) -> 6.27E-03 | Z85: up
A86: P39656 | B86: 21.61 | C86: 21.64 | D86: 39.3 | E86: Dolichyl-diphosphooligosaccharide--protein glycosyltransferase 48 kDa subunit | F86: DDOST | G86: 17 | H86: 1.5849 | I86: 1.4859 | J86: 1.888 | K86: 0.8551 | L86: 0.6081 | M86: 0.871 | N86: 2.124410933 | O86: 0.004089953 | P86: 1.3062 | Q86: 1.4997 | R86: 1.3677 | S86: 0.7244 | T86: 0.5702 | U86: 0.3802 | V86: 2.49 | W86: 1.91E-03 | X86: =AVERAGE(N86,V86) -> 2.31 | Y86: =AVERAGE(O86,W86) -> 3.00E-03 | Z86: up
A87: P40926 | B87: 27.29 | C87: 27.32 | D87: 54.7 | E87: Malate dehydrogenase, mitochondrial | F87: MDH2 | G87: 16 | H87: 1.7061 | I87: 1.6749 | J87: 1.888 | K87: 0.5297 | L87: 0.8395 | M87: 0.7727 | N87: 2.459965451 | O87: 0.000827183 | P87: 1.5849 | Q87: 1.6904 | R87: 1.6144 | S87: 0.673 | T87: 0.6081 | U87: 0.7311 | V87: 2.43 | W87: 3.53E-05 | X87: =AVERAGE(N87,V87) -> 2.44 | Y87: =AVERAGE(O87,W87) -> 4.31E-04 | Z87: up
A88: P43307 | B88: 6.01 | C88: 6.01 | D88: 18.2 | E88: Translocon-associated protein subunit alpha | F88: SSR1 | G88: 7 | H88: 2.729 | I88: 4.5709 | J88: 3.02 | K88: 0.8318 | L88: 0.8954 | M88: 1.1376 | N88: 3.602310807 | O88: 0.012742529 | P88: 3.1046 | Q88: 2.7797 | R88: 2.5586 | S88: 0.4875 | T88: 0.5702 | U88: 0.9908 | V88: 4.12 | W88: 6.61E-04 | X88: =AVERAGE(N88,V88) -> 3.86 | Y88: =AVERAGE(O88,W88) -> 6.70E-03 | Z88: up
A89: P46459 | B89: 67 | C89: 69.51 | D89: 55.7 | E89: Vesicle-fusing ATPase | F89: NSF | G89: 49 | H89: 1.0666 | I89: 1.2823 | J89: 1.2023 | K89: 0.6026 | L89: 0.4055 | M89: 0.5598 | N89: 2.264940366 | O89: 0.001600003 | P89: 1.0965 | Q89: 1.4322 | R89: 1.3677 | S89: 0.5445 | T89: 0.5495 | U89: 0.4831 | V89: 2.47 | W89: 1.82E-03 | X89: =AVERAGE(N89,V89) -> 2.37 | Y89: =AVERAGE(O89,W89) -> 1.71E-03 | Z89: up
A90: P49755 | B90: 12.54 | C90: 12.6 | D90: 45.7 | E90: Transmembrane emp24 domain-containing protein 10 | F90: TMED10 | G90: 11 | H90: 1.3932 | I90: 1.3428 | J90: 1.7539 | K90: 0.5808 | L90: 0.5105 | M90: 0.5152 | N90: 2.794833489 | O90: 0.001859813 | P90: 1.3552 | Q90: 1.1272 | R90: 1.4588 | S90: 0.6792 | T90: 0.4285 | U90: 0.8241 | V90: 2.04 | W90: 1.15E-02 | X90: =AVERAGE(N90,V90) -> 2.42 | Y90: =AVERAGE(O90,W90) -> 6.68E-03 | Z90: up
A91: P50552 | B91: 33.35 | C91: 33.41 | D91: 61.8 | E91: Vasodilator-stimulated phosphoprotein | F91: VASP | G91: 43 | H91: 1.1376 | I91: 0.879 | J91: 1.2359 | K91: 0.4529 | L91: 0.4742 | M91: 0.5702 | N91: 2.172243371 | O91: 0.006489588 | P91: 0.929 | Q91: 0.9376 | R91: 1.0186 | S91: 0.4055 | T91: 0.4246 | U91: 0.2831 | V91: 2.59 | W91: 3.61E-04 | X91: =AVERAGE(N91,V91) -> 2.38 | Y91: =AVERAGE(O91,W91) -> 3.43E-03 | Z91: up
A92: P50897 | B92: 21.89 | C92: 23.2 | D92: 68.6 | E92: Palmitoyl-protein thioesterase 1 | F92: PPT1 | G92: 35 | H92: 1.2474 | I92: 1.4723 | J92: 1.556 | K92: 0.6792 | L92: 0.5702 | M92: 0.6855 | N92: 2.209778283 | O92: 0.001425642 | P92: 1.3428 | Q92: 1.3552 | R92: 1.5417 | S92: 0.7943 | T92: 0.5297 | U92: 0.6546 | V92: 2.14 | W92: 1.65E-03 | X92: =AVERAGE(N92,V92) -> 2.18 | Y92: =AVERAGE(O92,W92) -> 1.54E-03 | Z92: up
A93: P53396 | B93: 60.4 | C93: 60.4 | D93: 37.8 | E93: ATP-citrate synthase | F93: ACLY | G93: 36 | H93: 1.0375 | I93: 1.4322 | J93: 1.7219 | K93: 0.6138 | L93: 0.7244 | M93: 0.7516 | N93: 2.005742176 | O93: 0.025932139 | P93: 1.0375 | Q93: 1.5136 | R93: 1.5417 | S93: 0.6546 | T93: 0.7586 | U93: 0.6252 | V93: 2.01 | W93: 1.53E-02 | X93: =AVERAGE(N93,V93) -> 2.01 | Y93: =AVERAGE(O93,W93) -> 2.06E-02 | Z93: up
A94: P54920 | B94: 41.56 | C94: 41.64 | D94: 78.6 | E94: Alpha-soluble NSF attachment protein | F94: NAPA | G94: 32 | H94: 1.9231 | I94: 2.0324 | J94: 2.2699 | K94: 1.0864 | L94: 0.863 | M94: 1 | N94: 2.110734387 | O94: 0.000842441 | P94: 1.6293 | Q94: 2.0137 | R94: 1.9409 | S94: 1.0568 | T94: 0.7798 | U94: 0.879 | V94: 2.06 | W94: 2.61E-03 | X94: =AVERAGE(N94,V94) -> 2.08 | Y94: =AVERAGE(O94,W94) -> 1.72E-03 | Z94: up
A95: P61626 | B95: 21.43 | C95: 21.54 | D95: 61.5 | E95: Lysozyme C | F95: LYZ | G95: 24 | H95: 1.9055 | I95: 1.6749 | J95: 1.5704 | K95: 0.6918 | L95: 0.8166 | M95: 0.3133 | N95: 2.827468848 | O95: 0.003573688 | P95: 1.803 | Q95: 1.6904 | R95: 1.4723 | S95: 0.5346 | T95: 0.4325 | U95: 0.227 | V95: 4.16 | W95: 6.92E-04 | X95: =AVERAGE(N95,V95) -> 3.49 | Y95: =AVERAGE(O95,W95) -> 2.13E-03 | Z95: up
A96: P62851 | B96: 3.71 | C96: 3.82 | D96: 24 | E96: 40S ribosomal protein S25 | F96: RPS25 | G96: 2 | H96: 1.2023 | I96: 1.5276 | J96: 1.3932 | K96: 0.5012 | L96: 0.5546 | M96: 0.8551 | N96: 2.157674394 | O96: 0.007062536 | P96: 1 | Q96: 1.1588 | R96: 0.9817 | S96: 0.3373 | T96: 0.5546 | U96: 0.4571 | V96: 2.33 | W96: 2.10E-03 | X96: =AVERAGE(N96,V96) -> 2.24 | Y96: =AVERAGE(O96,W96) -> 4.58E-03 | Z96: up
A97: P62873 | B97: 42.18 | C97: 42.22 | D97: 81.5 | E97: Guanine nucleotide-binding protein G(I)/G(S)/G(T) subunit beta-1 | F97: GNB1 | G97: 79 | H97: 1.4588 | I97: 0.8241 | J97: 1.5849 | K97: 0.3837 | L97: 0.6607 | M97: 0.3908 | N97: 2.694955407 | O97: 0.032528568 | P97: 1.3428 | Q97: 1.3552 | R97: 1.4191 | S97: 0.3467 | T97: 0.3945 | U97: 0.3342 | V97: 3.83 | W97: 4.54E-06 | X97: =AVERAGE(N97,V97) -> 3.26 | Y97: =AVERAGE(O97,W97) -> 1.63E-02 | Z97: up
A98: P62879 | B98: 20.35 | C98: 35.83 | D98: 78.8 | E98: Guanine nucleotide-binding protein G(I)/G(S)/G(T) subunit beta-2 | F98: GNB2 | G98: 87 | H98: 1.2134 | I98: 1.1803 | J98: 0.955 | K98: 0.2443 | L98: 0.3404 | M98: 0.2089 | N98: 4.219632056 | O98: 0.000701126 | P98: 1.4859 | Q98: 1.3804 | R98: 1.4588 | S98: 0.4875 | T98: 0.3981 | U98: 0.3597 | V98: 3.47 | W98: 3.15E-05 | X98: =AVERAGE(N98,V98) -> 3.85 | Y98: =AVERAGE(O98,W98) -> 3.66E-04 | Z98: up
A99: P63010 | B99: 85.19 | C99: 85.23 | D99: 63.2 | E99: AP-2 complex subunit beta | F99: AP2B1 | G99: 101 | H99: 1.0093 | I99: 1.1169 | J99: 1.0765 | K99: 0.7178 | L99: 0.5649 | M99: 0.302 | N99: 2.021013441 | O99: 0.012640935 | P99: 1.1482 | Q99: 1.4322 | R99: 1.5417 | S99: 0.9817 | T99: 0.6026 | U99: 0.4285 | V99: 2.05 | W99: 2.50E-02 | X99: =AVERAGE(N99,V99) -> 2.03 | Y99: =AVERAGE(O99,W99) -> 1.88E-02 | Z99: up
A100: P63244 | B100: 33.92 | C100: 33.98 | D100: 64.7 | E100: Guanine nucleotide-binding protein subunit beta-2-like 1 | F100: GNB2L1 | G100: 29 | H100: 1.1066 | I100: 1.5136 | J100: 1.3932 | K100: 0.5346 | L100: 0.4093 | M100: 0.3436 | N100: 3.117203883 | O100: 0.002406313 | P100: 1.0864 | Q100: 1.0375 | R100: 1.1066 | S100: 0.4169 | T100: 0.5012 | U100: 0.2884 | V100: 2.68 | W100: 4.92E-04 | X100: =AVERAGE(N100,V100) -> 2.90 | Y100: =AVERAGE(O100,W100) -> 1.45E-03 | Z100: up
A101: Q13740 | B101: 33.6 | C101: 33.7 | D101: 47.2 | E101: CD166 antigen | F101: ALCAM | G101: 38 | H101: 0.8166 | I101: 1.3428 | J101: 1.3552 | K101: 0.492 | L101: 0.4613 | M101: 0.3908 | N101: 2.614835206 | O101: 0.015875557 | P101: 0.955 | Q101: 1.4191 | R101: 1.2246 | S101: 0.4613 | T101: 0.3873 | U101: 0.3404 | V101: 3.03 | W101: 4.46E-03 | X101: =AVERAGE(N101,V101) -> 2.82 | Y101: =AVERAGE(O101,W101) -> 1.02E-02 | Z101: up
A102: Q14956 | B102: 7.38 | C102: 7.86 | D102: 16.4 | E102: Transmembrane glycoprotein NMB | F102: GPNMB | G102: 17 | H102: 0.929 | I102: 1.1169 | J102: 1.1803 | K102: 0.4613 | L102: 0.5598 | M102: 0.4656 | N102: 2.17004103 | O102: 0.002111877 | P102: 0.8954 | Q102: 1.2589 | R102: 1 | S102: 0.4875 | T102: 0.6194 | U102: 0.3733 | V102: 2.13 | W102: 1.25E-02 | X102: =AVERAGE(N102,V102) -> 2.15 | Y102: =AVERAGE(O102,W102) -> 7.31E-03 | Z102: up
A103: Q15084 | B103: 39.41 | C103: 41.21 | D103: 62.5 | E103: Protein disulfide-isomerase A6 | F103: PDIA6 | G103: 68 | H103: 1.0471 | I103: 1.2246 | J103: 1.4454 | K103: 0.4571 | L103: 0.3664 | M103: 0.6427 | N103: 2.535193016 | O103: 0.006002184 | P103: 1.2359 | Q103: 1.3804 | R103: 1.4997 | S103: 0.6607 | T103: 0.4742 | U103: 0.5754 | V103: 2.41 | W103: 1.01E-03 | X103: =AVERAGE(N103,V103) -> 2.47 | Y103: =AVERAGE(O103,W103) -> 3.51E-03 | Z103: up
A104: Q53H82 | B104: 8.4 | C104: 8.44 | D104: 30.9 | E104: Beta-lactamase-like protein 2 | F104: LACTB2 | G104: 4 | H104: 1.7539 | I104: 1.888 | J104: 1.977 | K104: 1.1482 | L104: 0.787 | M104: 0.863 | N104: 2.008040883 | O104: 0.001809688 | P104: 2.0137 | Q104: 2.3768 | R104: 2.1478 | S104: 1.1376 | T104: 0.9727 | U104: 1.1376 | V104: 2.01 | W104: 7.80E-04 | X104: =AVERAGE(N104,V104) -> 2.01 | Y104: =AVERAGE(O104,W104) -> 1.29E-03 | Z104: up
A105: Q86Y82 | B105: 12.26 | C105: 12.32 | D105: 43.8 | E105: Syntaxin-12 | F105: STX12 | G105: 18 | H105: 2.0137 | I105: 2.5586 | J105: 2.6303 | K105: 0.5297 | L105: 0.4529 | M105: 0.9376 | N105: 3.750963441 | O105: 0.002016906 | P105: 1.2823 | Q105: 2.1878 | R105: 1.6749 | S105: 0.8241 | T105: 0.597 | U105: 0.5495 | V105: 2.61 | W105: 1.85E-02 | X105: =AVERAGE(N105,V105) -> 3.18 | Y105: =AVERAGE(O105,W105) -> 1.02E-02 | Z105: up
A106: Q8NBS9 | B106: 32.67 | C106: 34.14 | D106: 56.3 | E106: Thioredoxin domain-containing protein 5 | F106: TXNDC5 | G106: 32 | H106: 1.3552 | I106: 1.2134 | J106: 1.2706 | K106: 0.6486 | L106: 0.4487 | M106: 0.7244 | N106: 2.107482022 | O106: 0.001860656 | P106: 1.1482 | Q106: 1.4859 | R106: 1.3677 | S106: 0.631 | T106: 0.6252 | U106: 0.5598 | V106: 2.20 | W106: 2.00E-03 | X106: =AVERAGE(N106,V106) -> 2.16 | Y106: =AVERAGE(O106,W106) -> 1.93E-03 | Z106: up
A107: Q96AG4 | B107: 22.26 | C107: 22.35 | D107: 52.1 | E107: Leucine-rich repeat-containing protein 59 | F107: LRRC59 | G107: 17 | H107: 1.8707 | I107: 1.9055 | J107: 1.7061 | K107: 0.4529 | L107: 0.3981 | M107: 0.3404 | N107: 4.601561189 | O107: 3.30E-05 | P107: 1.0965 | Q107: 2.0512 | R107: 1.9409 | S107: 0.3404 | T107: 0.2188 | U107: 0.227 | V107: 6.47 | W107: 9.20E-03 | X107: =AVERAGE(N107,V107) -> 5.54 | Y107: =AVERAGE(O107,W107) -> 4.61E-03 | Z107: up
A108: Q9BSJ8 | B108: 68.06 | C108: 68.34 | D108: 53.3 | E108: Extended synaptotagmin-1 | F108: ESYT1 | G108: 67 | H108: 1.1588 | I108: 1.2942 | J108: 1.2474 | K108: 0.52 | L108: 0.5012 | M108: 0.4786 | N108: 2.467262302 | O108: 6.00E-05 | P108: 1.1376 | Q108: 1.4588 | R108: 1.3062 | S108: 0.5445 | T108: 0.4613 | U108: 0.4487 | V108: 2.68 | W108: 1.11E-03 | X108: =AVERAGE(N108,V108) -> 2.58 | Y108: =AVERAGE(O108,W108) -> 5.87E-04 | Z108: up
A109: Q9HAV0 | B109: 10.28 | C109: 24.89 | D109: 65.6 | E109: Guanine nucleotide-binding protein subunit beta-4 | F109: GNB4 | G109: 36 | H109: 0.9727 | I109: 0.912 | J109: 1 | K109: 0.4207 | L109: 0.5598 | M109: 0.3733 | N109: 2.13081696 | O109: 0.001167183 | P109: 1.2589 | Q109: 1.0765 | R109: 1.0568 | S109: 0.5248 | T109: 0.5861 | U109: 0.278 | V109: 2.44 | W109: 4.24E-03 | X109: =AVERAGE(N109,V109) -> 2.29 | Y109: =AVERAGE(O109,W109) -> 2.71E-03 | Z109: up
A110: Q9NZW5 | B110: 27.96 | C110: 28.12 | D110: 45.7 | E110: MAGUK p55 subfamily member 6 | F110: MPP6 | G110: 25 | H110: 1.0375 | I110: 1.3183 | J110: 1.2706 | K110: 0.278 | L110: 0.3767 | M110: 0.3192 | N110: 3.723585584 | O110: 0.000637599 | P110: 1.4191 | Q110: 1.3552 | R110: 1.4859 | S110: 0.3251 | T110: 0.492 | U110: 0.3467 | V110: 3.66 | W110: 8.96E-05 | X110: =AVERAGE(N110,V110) -> 3.69 | Y110: =AVERAGE(O110,W110) -> 3.64E-04 | Z110: up
A111: Q9UHA4 | B111: 4.61 | C111: 4.8 | D111: 59.7 | E111: Ragulator complex protein LAMTOR3 | F111: LAMTOR3 | G111: 3 | H111: 1.3183 | I111: 1.0965 | J111: 1.3804 | K111: 0.6982 | L111: 0.5916 | M111: 0.1644 | N111: 2.609819832 | O111: 0.013366058 | P111: 2.0137 | Q111: 2.5351 | R111: 2.2284 | S111: 0.879 | T111: 0.955 | U111: 0.8091 | V111: 2.56 | W111: 9.30E-04 | X111: =AVERAGE(N111,V111) -> 2.59 | Y111: =AVERAGE(O111,W111) -> 7.15E-03 | Z111: up
A112: Q9Y3A6 | B112: 4.13 | C112: 4.15 | D112: 25.3 | E112: Transmembrane emp24 domain-containing protein 5 | F112: TMED5 | G112: 3 | H112: 1.5276 | I112: 2.4889 | J112: 2.5586 | K112: 0.7379 | L112: 0.8166 | M112: 0.5702 | N112: 3.094601591 | O112: 0.012093301 | P112: 1.3677 | Q112: 1.9231 | R112: 1.3183 | S112: 0.787 | T112: 0.5649 | U112: 0.2355 | V112: 2.90 | W112: 1.61E-02 | X112: =AVERAGE(N112,V112) -> 3.00 | Y112: =AVERAGE(O112,W112) -> 1.41E-02 | Z112: up
